[Event "Titled Tuesday Blitz January 17 Late 2023"]
[White "Klose, Eli"]
[Black "Baskakov, Egor"]
[WhiteFideId "16242955"]
[BlackFideId "24197866"]
[WhiteElo "1519"]
[BlackElo "2215"]
[Result "0-1"]
[Round "06"]
[TimeControl "180+2"]
[Date "2023.01.17"]
[WhiteClock "0:00:15"]
[BlackClock "0:00:19"]

1. e4 {[%clk 0:03:00]}  c5 {[%clk 0:03:00]} 2. Nc3 {[%clk 0:03:00]}  Nc6 {[%clk 0:02:59]} 3. g3 {[%clk 0:03:00]}  g6 {[%clk 0:03:00]} 4. d3 {[%clk 0:03:00]}  Bg7 {[%clk 0:03:00]} 5. Be3 {[%clk 0:03:00]}  Nd4 {[%clk 0:02:59]} 6. Qd2 {[%clk 0:03:00]}  e6 {[%clk 0:02:57]} 7. Nd1 {[%clk 0:03:00]}  b6 {[%clk 0:02:51]} 8. Bg2 {[%clk 0:03:00]}  d5 {[%clk 0:02:45]} 9. exd5 {[%clk 0:02:52]}  exd5 {[%clk 0:02:46]} 10. Ne2 {[%clk 0:02:47]}  Nxe2 {[%clk 0:02:40]} 11. Qxe2 {[%clk 0:02:47]}  Ne7 {[%clk 0:02:39]} 12. Qd2 {[%clk 0:02:44]}  Nf5 {[%clk 0:02:35]} 13. O-O {[%clk 0:02:39]}  O-O {[%clk 0:02:34]} 14. c3 {[%clk 0:02:24]}  Ba6 {[%clk 0:02:27]} 15. Re1 {[%clk 0:02:21]}  Rc8 {[%clk 0:02:24]} 16. Bg5 {[%clk 0:02:13]}  Qd7 {[%clk 0:02:18]} 17. Ne3 {[%clk 0:02:01]}  d4 {[%clk 0:02:15]} 18. Nxf5 {[%clk 0:01:57]}  Qxf5 {[%clk 0:02:16]} 19. c4 {[%clk 0:01:55]}  Rfe8 {[%clk 0:02:13]} 20. h4 {[%clk 0:01:45]}  Qd7 {[%clk 0:02:03]} 21. b4 {[%clk 0:01:39]}  Bb7 {[%clk 0:02:00]} 22. b5 {[%clk 0:01:31]}  Bxg2 {[%clk 0:01:57]} 23. Kxg2 {[%clk 0:01:32]}  Qb7+ {[%clk 0:01:57]} 24. Kg1 {[%clk 0:01:31]}  Qf3 {[%clk 0:01:57]} 25. a4 {[%clk 0:01:27]}  Bf8 {[%clk 0:01:43]} 26. Rad1 {[%clk 0:01:16]}  Bd6 {[%clk 0:01:39]} 27. a5 {[%clk 0:00:25]}  h5 {[%clk 0:01:16]} 28. a6 {[%clk 0:00:24]}  Kg7 {[%clk 0:01:08]} 29. Bh6+ {[%clk 0:00:24]}  Kh7 {[%clk 0:01:07]} 30. Bg5 {[%clk 0:00:25]}  f6 {[%clk 0:01:04]} 31. Bf4 {[%clk 0:00:25]}  Bxf4 {[%clk 0:01:04]} 32. Qxf4 {[%clk 0:00:25]}  Qxf4 {[%clk 0:01:03]} 33. gxf4 {[%clk 0:00:25]}  Kg7 {[%clk 0:01:03]} 34. Kg2 {[%clk 0:00:25]}  Kf7 {[%clk 0:01:03]} 35. Kf3 {[%clk 0:00:25]}  Rxe1 {[%clk 0:00:53]} 36. Rxe1 {[%clk 0:00:25]}  Re8 {[%clk 0:00:53]} 37. Rg1 {[%clk 0:00:19]}  Re6 {[%clk 0:00:45]} 38. Rg2 {[%clk 0:00:17]}  Re1 {[%clk 0:00:44]} 39. f5 {[%clk 0:00:16]}  gxf5 {[%clk 0:00:43]} 40. Kf4 {[%clk 0:00:17]}  Rd1 {[%clk 0:00:35]} 41. Kxf5 {[%clk 0:00:16]}  Rxd3 {[%clk 0:00:36]} 42. f4 {[%clk 0:00:17]}  Re3 {[%clk 0:00:32]} 43. Rg6 {[%clk 0:00:16]}  d3 {[%clk 0:00:32]} 44. Rxf6+ {[%clk 0:00:16]}  Ke7 {[%clk 0:00:32]} 45. Rg6 {[%clk 0:00:15]}  d2 {[%clk 0:00:31]} 46. Rg7+ {[%clk 0:00:13]}  Kd8 {[%clk 0:00:30]} 47. Rg8+ {[%clk 0:00:13]}  Kd7 {[%clk 0:00:28]} 48. Rg7+ {[%clk 0:00:13]}  Re7 {[%clk 0:00:28]} 49. Rg1 {[%clk 0:00:13]}  Re1 {[%clk 0:00:27]} 50. Rg7+ {[%clk 0:00:13]}  Ke8 {[%clk 0:00:27]} 51. Rg8+ {[%clk 0:00:12]}  Kf7 {[%clk 0:00:27]} 52. Rd8 {[%clk 0:00:11]}  d1=Q {[%clk 0:00:27]} 53. Rxd1 {[%clk 0:00:12]}  Rxd1 {[%clk 0:00:27]} 54. Ke5 {[%clk 0:00:13]}  Rd4 {[%clk 0:00:27]} 55. f5 {[%clk 0:00:13]}  Rxh4 {[%clk 0:00:26]} 56. Kd5 {[%clk 0:00:13]}  Rf4 {[%clk 0:00:21]} 57. Kc6 {[%clk 0:00:13]}  h4 {[%clk 0:00:20]} 58. Kb7 {[%clk 0:00:14]}  h3 {[%clk 0:00:21]} 59. Kxa7 {[%clk 0:00:14]}  h2 {[%clk 0:00:21]} 60. Kxb6 {[%clk 0:00:14]}  h1=Q {[%clk 0:00:21]} 61. a7 {[%clk 0:00:15]}  Rxc4 {[%clk 0:00:20]} 62. Kc7 {[%clk 0:00:14]}  Qa8 {[%clk 0:00:21]} 63. b6 {[%clk 0:00:14]}  Rb4 {[%clk 0:00:21]} 64. f6 {[%clk 0:00:14]}  c4 {[%clk 0:00:21]} 65. b7 {[%clk 0:00:14]}  Rxb7+ {[%clk 0:00:21]} 66. Kc6 {[%clk 0:00:15]}  c3 {[%clk 0:00:19]} 67. Kd6 {[%clk 0:00:16]}  c2 {[%clk 0:00:19]} 68. Ke5 {[%clk 0:00:16]}  c1=Q {[%clk 0:00:19]} 69. Kd6 {[%clk 0:00:16]}  Qd2+ {[%clk 0:00:19]} 70. Kc5 {[%clk 0:00:15]}  Qc8# {[%clk 0:00:19]} 0-1


[Site "https://www.chess.com"]

[Event "Titled Tuesday Blitz January 17 Late 2023"]
[White "Weetik, Vjacheslav"]
[Black "Quispe Arteaga, Gabriel"]
[WhiteFideId "4153472"]
[BlackFideId "32059809"]
[WhiteElo "2423"]
[BlackElo "2381"]
[Result "0-1"]
[Round "06"]
[TimeControl "180+2"]
[Date "2023.01.17"]
[WhiteClock "0:00:15"]
[BlackClock "0:00:38"]

1. d4 {[%clk 0:02:59]}  Nf6 {[%clk 0:02:58]} 2. Nf3 {[%clk 0:02:59]}  e6 {[%clk 0:02:56]} 3. c4 {[%clk 0:02:59]}  Bb4+ {[%clk 0:02:56]} 4. Nbd2 {[%clk 0:02:57]}  O-O {[%clk 0:02:55]} 5. e3 {[%clk 0:02:57]}  Re8 {[%clk 0:02:55]} 6. Be2 {[%clk 0:02:55]}  b6 {[%clk 0:02:51]} 7. a3 {[%clk 0:02:51]}  Bf8 {[%clk 0:02:50]} 8. O-O {[%clk 0:02:48]}  Bb7 {[%clk 0:02:50]} 9. b4 {[%clk 0:02:30]}  c5 {[%clk 0:02:49]} 10. bxc5 {[%clk 0:02:26]}  bxc5 {[%clk 0:02:50]} 11. Rb1 {[%clk 0:02:26]}  Qc7 {[%clk 0:02:50]} 12. Ne5 {[%clk 0:02:11]}  Nc6 {[%clk 0:02:45]} 13. Ndf3 {[%clk 0:02:08]}  Rab8 {[%clk 0:02:42]} 14. Qc2 {[%clk 0:02:03]}  cxd4 {[%clk 0:02:39]} 15. exd4 {[%clk 0:01:48]}  Nxd4 {[%clk 0:02:37]} 16. Nxd4 {[%clk 0:01:46]}  Qxe5 {[%clk 0:02:37]} 17. Bf3 {[%clk 0:01:24]}  Bxf3 {[%clk 0:02:19]} 18. Nxf3 {[%clk 0:01:23]}  Qe4 {[%clk 0:02:19]} 19. Qxe4 {[%clk 0:01:21]}  Nxe4 {[%clk 0:02:20]} 20. Be3 {[%clk 0:01:17]}  a6 {[%clk 0:02:15]} 21. Ne5 {[%clk 0:01:08]}  Nf6 {[%clk 0:01:34]} 22. a4 {[%clk 0:01:01]}  Bd6 {[%clk 0:01:26]} 23. Nd3 {[%clk 0:00:57]}  Ne4 {[%clk 0:01:14]} 24. g3 {[%clk 0:00:46]}  h6 {[%clk 0:01:13]} 25. Kg2 {[%clk 0:00:45]}  Nc3 {[%clk 0:01:11]} 26. Ra1 {[%clk 0:00:40]}  Rec8 {[%clk 0:01:04]} 27. c5 {[%clk 0:00:35]}  Be7 {[%clk 0:01:04]} 28. Rfc1 {[%clk 0:00:34]}  Nd5 {[%clk 0:01:05]} 29. Bd4 {[%clk 0:00:34]}  Bf6 {[%clk 0:01:02]} 30. Bxf6 {[%clk 0:00:34]}  gxf6 {[%clk 0:01:02]} 31. Rab1 {[%clk 0:00:33]}  Kf8 {[%clk 0:00:59]} 32. Kf3 {[%clk 0:00:33]}  Ke7 {[%clk 0:00:59]} 33. g4 {[%clk 0:00:30]}  d6 {[%clk 0:00:41]} 34. c6 {[%clk 0:00:17]}  Rxb1 {[%clk 0:00:40]} 35. Rxb1 {[%clk 0:00:15]}  Rxc6 {[%clk 0:00:41]} 36. Rb7+ {[%clk 0:00:15]}  Rc7 {[%clk 0:00:41]} 37. Rb8 {[%clk 0:00:15]}  Rc3 {[%clk 0:00:38]} 0-1


[Site "https://www.chess.com"]

[Event "Titled Tuesday Blitz January 17 Late 2023"]
[White "Solon, Nathan"]
[Black "Yanchenko, Roman"]
[WhiteFideId "2017229"]
[BlackFideId "4137329"]
[WhiteElo "2306"]
[BlackElo "2466"]
[Result "1-0"]
[Round "06"]
[TimeControl "180+2"]
[Date "2023.01.17"]
[WhiteClock "0:00:21"]
[BlackClock "0:00:18"]

1. Nf3 {[%clk 0:03:00]}  d5 {[%clk 0:02:53]} 2. g3 {[%clk 0:02:57]}  Nf6 {[%clk 0:02:54]} 3. Bg2 {[%clk 0:02:57]}  Bf5 {[%clk 0:02:54]} 4. O-O {[%clk 0:02:56]}  e6 {[%clk 0:02:55]} 5. c4 {[%clk 0:02:56]}  c6 {[%clk 0:02:55]} 6. Qb3 {[%clk 0:02:55]}  Qb6 {[%clk 0:02:56]} 7. d3 {[%clk 0:02:54]}  Nbd7 {[%clk 0:02:56]} 8. cxd5 {[%clk 0:02:54]}  cxd5 {[%clk 0:02:56]} 9. Nc3 {[%clk 0:02:47]}  Qxb3 {[%clk 0:02:56]} 10. axb3 {[%clk 0:02:48]}  a6 {[%clk 0:02:56]} 11. Nh4 {[%clk 0:02:25]}  Bg6 {[%clk 0:02:56]} 12. e4 {[%clk 0:02:25]}  dxe4 {[%clk 0:02:56]} 13. dxe4 {[%clk 0:02:24]}  e5 {[%clk 0:02:56]} 14. Be3 {[%clk 0:01:39]}  Bc5 {[%clk 0:02:56]} 15. Bxc5 {[%clk 0:01:39]}  Nxc5 {[%clk 0:02:57]} 16. f4 {[%clk 0:01:39]}  Nxb3 {[%clk 0:02:52]} 17. Rad1 {[%clk 0:01:35]}  Bh5 {[%clk 0:02:52]} 18. Rd6 {[%clk 0:01:31]}  exf4 {[%clk 0:02:20]} 19. e5 {[%clk 0:01:32]}  Ng4 {[%clk 0:02:20]} 20. Bxb7 {[%clk 0:01:28]}  Rb8 {[%clk 0:02:02]} 21. Bc6+ {[%clk 0:01:28]}  Kf8 {[%clk 0:02:03]} 22. gxf4 {[%clk 0:01:27]}  g6 {[%clk 0:01:57]} 23. Ne4 {[%clk 0:01:18]}  Kg7 {[%clk 0:01:52]} 24. Ng3 {[%clk 0:00:56]}  Rhc8 {[%clk 0:01:20]} 25. Nxh5+ {[%clk 0:00:51]}  gxh5 {[%clk 0:01:21]} 26. Nf5+ {[%clk 0:00:51]}  Kh8 {[%clk 0:01:18]} 27. h3 {[%clk 0:00:47]}  Na5 {[%clk 0:01:16]} 28. Bd5 {[%clk 0:00:37]}  Nxe5 {[%clk 0:00:22]} 29. fxe5 {[%clk 0:00:38]}  Rxb2 {[%clk 0:00:22]} 30. Bxf7 {[%clk 0:00:36]}  Nb7 {[%clk 0:00:23]} 31. Rd7 {[%clk 0:00:26]}  Rcc2 {[%clk 0:00:22]} 32. Bd5 {[%clk 0:00:23]}  Rd2 {[%clk 0:00:16]} 33. Rxb7 {[%clk 0:00:20]}  Rxb7 {[%clk 0:00:16]} 34. Bxb7 {[%clk 0:00:21]}  a5 {[%clk 0:00:17]} 35. e6 {[%clk 0:00:21]}  Re2 {[%clk 0:00:18]} 36. e7 {[%clk 0:00:21]}  h6 {[%clk 0:00:17]} 37. Bc6 {[%clk 0:00:21]}  a4 {[%clk 0:00:16]} 38. e8=Q+ {[%clk 0:00:21]}  Rxe8 {[%clk 0:00:17]} 39. Bxe8 {[%clk 0:00:22]}  Kh7 {[%clk 0:00:18]} 40. Bxa4 {[%clk 0:00:21]}  h4 {[%clk 0:00:18]} 41. Nxh4 {[%clk 0:00:21]} 1-0


[Site "https://www.chess.com"]

[Event "Titled Tuesday Blitz January 17 Late 2023"]
[White "Riehle, Marco"]
[Black "Leiva, Gianmarco"]
[WhiteFideId "12904392"]
[BlackFideId "3804399"]
[WhiteElo "2368"]
[BlackElo "2392"]
[Result "1/2-1/2"]
[Round "06"]
[TimeControl "180+2"]
[Date "2023.01.17"]
[WhiteClock "0:00:42"]
[BlackClock "0:00:07"]

1. e4 {[%clk 0:02:58]}  c5 {[%clk 0:03:00]} 2. a3 {[%clk 0:02:57]}  d6 {[%clk 0:02:58]} 3. b4 {[%clk 0:02:56]}  Nf6 {[%clk 0:02:57]} 4. Nc3 {[%clk 0:02:56]}  Nc6 {[%clk 0:02:50]} 5. b5 {[%clk 0:02:56]}  Nd4 {[%clk 0:02:50]} 6. Nf3 {[%clk 0:02:55]}  Bg4 {[%clk 0:02:44]} 7. Be2 {[%clk 0:02:55]}  Bxf3 {[%clk 0:02:42]} 8. Bxf3 {[%clk 0:02:55]}  Qd7 {[%clk 0:02:31]} 9. O-O {[%clk 0:02:53]}  g6 {[%clk 0:02:29]} 10. a4 {[%clk 0:02:46]}  Bg7 {[%clk 0:02:28]} 11. Re1 {[%clk 0:02:43]}  O-O {[%clk 0:02:27]} 12. g3 {[%clk 0:02:36]}  Nxf3+ {[%clk 0:02:23]} 13. Qxf3 {[%clk 0:02:37]}  Ne8 {[%clk 0:01:41]} 14. Bb2 {[%clk 0:02:33]}  Nc7 {[%clk 0:01:40]} 15. Rab1 {[%clk 0:02:24]}  Ne6 {[%clk 0:01:40]} 16. Nd5 {[%clk 0:02:22]}  Nd4 {[%clk 0:01:35]} 17. Bxd4 {[%clk 0:02:21]}  Bxd4 {[%clk 0:01:32]} 18. c3 {[%clk 0:02:18]}  Bg7 {[%clk 0:01:32]} 19. c4 {[%clk 0:02:18]}  Bd4 {[%clk 0:01:25]} 20. h4 {[%clk 0:02:17]}  h5 {[%clk 0:01:23]} 21. Rb3 {[%clk 0:02:11]}  Kg7 {[%clk 0:01:04]} 22. Kg2 {[%clk 0:02:11]}  e6 {[%clk 0:01:02]} 23. Ne3 {[%clk 0:02:05]}  Rae8 {[%clk 0:00:38]} 24. Rd1 {[%clk 0:01:56]}  Qe7 {[%clk 0:00:38]} 25. Nc2 {[%clk 0:01:54]}  Qf6 {[%clk 0:00:39]} 26. Qxf6+ {[%clk 0:01:54]}  Kxf6 {[%clk 0:00:38]} 27. Nxd4 {[%clk 0:01:53]}  cxd4 {[%clk 0:00:38]} 28. d3 {[%clk 0:01:52]}  Rc8 {[%clk 0:00:38]} 29. f4 {[%clk 0:01:52]}  Rc5 {[%clk 0:00:38]} 30. Kf3 {[%clk 0:01:49]}  Ke7 {[%clk 0:00:37]} 31. Rb4 {[%clk 0:01:43]}  Kd7 {[%clk 0:00:37]} 32. a5 {[%clk 0:01:42]}  Kc8 {[%clk 0:00:35]} 33. Re1 {[%clk 0:01:37]}  Kd7 {[%clk 0:00:35]} 34. Rb2 {[%clk 0:01:36]}  Rfc8 {[%clk 0:00:35]} 35. Rb4 {[%clk 0:01:34]}  Rh8 {[%clk 0:00:34]} 36. e5 {[%clk 0:01:34]}  f5 {[%clk 0:00:22]} 37. exf6 {[%clk 0:01:32]}  Rf8 {[%clk 0:00:22]} 38. Re4 {[%clk 0:01:26]}  e5 {[%clk 0:00:20]} 39. a6 {[%clk 0:01:15]}  Rxf6 {[%clk 0:00:17]} 40. Rb2 {[%clk 0:01:15]}  Kc7 {[%clk 0:00:16]} 41. axb7 {[%clk 0:01:14]}  Kxb7 {[%clk 0:00:16]} 42. Rbe2 {[%clk 0:01:14]}  Rf5 {[%clk 0:00:16]} 43. Kg2 {[%clk 0:01:13]}  a6 {[%clk 0:00:14]} 44. bxa6+ {[%clk 0:01:12]}  Kxa6 {[%clk 0:00:15]} 45. fxe5 {[%clk 0:01:13]}  dxe5 {[%clk 0:00:15]} 46. g4 {[%clk 0:01:09]}  hxg4 {[%clk 0:00:14]} 47. Rxg4 {[%clk 0:01:10]}  Rc6 {[%clk 0:00:12]} 48. Rf2 {[%clk 0:01:08]}  Rcf6 {[%clk 0:00:12]} 49. Rxf5 {[%clk 0:01:08]}  gxf5 {[%clk 0:00:13]} 50. Rg8 {[%clk 0:01:07]}  Ka5 {[%clk 0:00:13]} 51. Rb8 {[%clk 0:01:02]}  e4 {[%clk 0:00:13]} 52. Rd8 {[%clk 0:01:00]}  Kb4 {[%clk 0:00:11]} 53. dxe4 {[%clk 0:01:00]}  Kc3 {[%clk 0:00:11]} 54. exf5 {[%clk 0:00:56]}  Rxf5 {[%clk 0:00:12]} 55. Kg3 {[%clk 0:00:56]}  d3 {[%clk 0:00:12]} 56. Kg4 {[%clk 0:00:49]}  Rc5 {[%clk 0:00:12]} 57. h5 {[%clk 0:00:45]}  Rxc4+ {[%clk 0:00:11]} 58. Kg5 {[%clk 0:00:45]}  Rc5+ {[%clk 0:00:09]} 59. Kg6 {[%clk 0:00:45]}  Rc6+ {[%clk 0:00:08]} 60. Kg7 {[%clk 0:00:45]}  Rc7+ {[%clk 0:00:08]} 61. Kg6 {[%clk 0:00:43]}  Rc6+ {[%clk 0:00:08]} 62. Kg7 {[%clk 0:00:43]}  Rc7+ {[%clk 0:00:08]} 63. Kg8 {[%clk 0:00:41]}  d2 {[%clk 0:00:06]} 64. h6 {[%clk 0:00:41]}  Kc2 {[%clk 0:00:06]} 65. h7 {[%clk 0:00:42]}  d1=Q {[%clk 0:00:05]} 66. Rxd1 {[%clk 0:00:40]}  Kxd1 {[%clk 0:00:06]} 67. h8=Q {[%clk 0:00:40]}  Rc8+ {[%clk 0:00:06]} 68. Kg7 {[%clk 0:00:41]}  Rxh8 {[%clk 0:00:07]} 69. Kxh8 {[%clk 0:00:42]} 1/2-1/2


[Site "https://www.chess.com"]

[Event "Titled Tuesday Blitz January 17 Late 2023"]
[White "Megalios, Konstantinos"]
[Black "Djordjevic, Vuk"]
[WhiteFideId "4238044"]
[BlackFideId "902098"]
[WhiteElo "2372"]
[BlackElo "2375"]
[Result "1-0"]
[Round "06"]
[TimeControl "180+2"]
[Date "2023.01.17"]
[WhiteClock "0:00:20"]
[BlackClock "0:00:01"]

1. e4 {[%clk 0:03:00]}  d5 {[%clk 0:03:00]} 2. exd5 {[%clk 0:03:00]}  Qxd5 {[%clk 0:03:01]} 3. Nc3 {[%clk 0:03:00]}  Qd6 {[%clk 0:03:01]} 4. d4 {[%clk 0:02:59]}  Nf6 {[%clk 0:03:02]} 5. Nf3 {[%clk 0:02:57]}  c6 {[%clk 0:03:02]} 6. g3 {[%clk 0:02:54]}  Bg4 {[%clk 0:03:02]} 7. Bg2 {[%clk 0:02:47]}  e6 {[%clk 0:03:01]} 8. O-O {[%clk 0:02:44]}  Be7 {[%clk 0:02:59]} 9. Qd3 {[%clk 0:02:38]}  Bxf3 {[%clk 0:02:54]} 10. Bxf3 {[%clk 0:02:36]}  Nbd7 {[%clk 0:02:54]} 11. Bf4 {[%clk 0:02:28]}  Qb4 {[%clk 0:02:43]} 12. a3 {[%clk 0:02:28]}  Qb6 {[%clk 0:02:41]} 13. b4 {[%clk 0:02:25]}  Nd5 {[%clk 0:02:37]} 14. Bd2 {[%clk 0:02:13]}  Bf6 {[%clk 0:02:24]} 15. Ne4 {[%clk 0:01:28]}  Qxd4 {[%clk 0:02:09]} 16. Nxf6+ {[%clk 0:01:26]}  Qxf6 {[%clk 0:02:06]} 17. Bg2 {[%clk 0:01:16]}  Rd8 {[%clk 0:02:03]} 18. c4 {[%clk 0:01:12]}  Ne5 {[%clk 0:02:02]} 19. Qe2 {[%clk 0:01:11]}  Nb6 {[%clk 0:01:06]} 20. Bc3 {[%clk 0:01:01]}  Nbxc4 {[%clk 0:00:53]} 21. Rfe1 {[%clk 0:01:01]}  O-O {[%clk 0:00:38]} 22. Bxe5 {[%clk 0:01:00]}  Nxe5 {[%clk 0:00:38]} 23. Qxe5 {[%clk 0:01:01]}  Qe7 {[%clk 0:00:39]} 24. Qc5 {[%clk 0:00:58]}  Qxc5 {[%clk 0:00:25]} 25. bxc5 {[%clk 0:00:59]}  Rd7 {[%clk 0:00:25]} 26. Rab1 {[%clk 0:00:58]}  Rc8 {[%clk 0:00:23]} 27. h4 {[%clk 0:00:57]}  Kf8 {[%clk 0:00:23]} 28. Rb3 {[%clk 0:00:54]}  Rcc7 {[%clk 0:00:21]} 29. Rc1 {[%clk 0:00:48]}  Rd4 {[%clk 0:00:20]} 30. Rb4 {[%clk 0:00:46]}  Rxb4 {[%clk 0:00:13]} 31. axb4 {[%clk 0:00:47]}  Rd7 {[%clk 0:00:12]} 32. Bf3 {[%clk 0:00:43]}  a6 {[%clk 0:00:09]} 33. Rd1 {[%clk 0:00:42]}  Rc7 {[%clk 0:00:08]} 34. Rd8+ {[%clk 0:00:40]}  Ke7 {[%clk 0:00:08]} 35. Rb8 {[%clk 0:00:40]}  Kf6 {[%clk 0:00:08]} 36. Kf1 {[%clk 0:00:40]}  Ke5 {[%clk 0:00:08]} 37. Rd8 {[%clk 0:00:39]}  h6 {[%clk 0:00:04]} 38. Ke2 {[%clk 0:00:38]}  Kf6 {[%clk 0:00:04]} 39. Be4 {[%clk 0:00:37]}  Ke5 {[%clk 0:00:04]} 40. Ke3 {[%clk 0:00:36]}  Kf6 {[%clk 0:00:03]} 41. f4 {[%clk 0:00:36]}  Ke7 {[%clk 0:00:04]} 42. Rb8 {[%clk 0:00:36]}  Rd7 {[%clk 0:00:04]} 43. h5 {[%clk 0:00:34]}  Kf6 {[%clk 0:00:04]} 44. g4 {[%clk 0:00:31]}  Re7 {[%clk 0:00:02]} 45. Rd8 {[%clk 0:00:29]}  Rc7 {[%clk 0:00:02]} 46. Kd4 {[%clk 0:00:28]}  Re7 {[%clk 0:00:02]} 47. Rd6 {[%clk 0:00:28]}  Rc7 {[%clk 0:00:02]} 48. Rd8 {[%clk 0:00:28]}  Ke7 {[%clk 0:00:02]} 49. Rd6 {[%clk 0:00:27]}  Kf6 {[%clk 0:00:03]} 50. Bd3 {[%clk 0:00:26]}  Re7 {[%clk 0:00:04]} 51. Ke4 {[%clk 0:00:26]}  Rc7 {[%clk 0:00:04]} 52. Bc4 {[%clk 0:00:26]}  Re7 {[%clk 0:00:04]} 53. Bb3 {[%clk 0:00:25]}  Rc7 {[%clk 0:00:03]} 54. f5 {[%clk 0:00:24]}  Kg5 {[%clk 0:00:03]} 55. fxe6 {[%clk 0:00:24]}  fxe6 {[%clk 0:00:04]} 56. Bxe6 {[%clk 0:00:23]}  Re7 {[%clk 0:00:04]} 57. Ke5 {[%clk 0:00:23]}  g6 {[%clk 0:00:04]} 58. hxg6 {[%clk 0:00:21]}  Kxg6 {[%clk 0:00:05]} 59. Kf4 {[%clk 0:00:19]}  Kf6 {[%clk 0:00:04]} 60. Bf5+ {[%clk 0:00:19]}  Kg7 {[%clk 0:00:04]} 61. Rg6+ {[%clk 0:00:20]}  Kf7 {[%clk 0:00:02]} 62. Rxh6 {[%clk 0:00:20]}  Re2 {[%clk 0:00:02]} 63. Rh7+ {[%clk 0:00:20]}  Kf6 {[%clk 0:00:01]} 64. g5# {[%clk 0:00:20]} 1-0


[Site "https://www.chess.com"]

[Event "Titled Tuesday Blitz January 17 Late 2023"]
[White "Bilan, Danila"]
[Black "Pichot, Alan"]
[WhiteFideId "24161918"]
[BlackFideId "110973"]
[WhiteElo "2303"]
[BlackElo "2638"]
[Result "1-0"]
[Round "06"]
[TimeControl "180+2"]
[Date "2023.01.17"]
[WhiteClock "0:00:13"]
[BlackClock "0:00:08"]

1. d4 {[%clk 0:02:59]}  Nf6 {[%clk 0:02:59]} 2. Nf3 {[%clk 0:02:59]}  g6 {[%clk 0:03:00]} 3. Bg5 {[%clk 0:02:59]}  Bg7 {[%clk 0:03:00]} 4. c3 {[%clk 0:02:59]}  O-O {[%clk 0:03:01]} 5. Nbd2 {[%clk 0:02:57]}  d6 {[%clk 0:03:01]} 6. e4 {[%clk 0:02:56]}  c5 {[%clk 0:03:02]} 7. dxc5 {[%clk 0:02:54]}  dxc5 {[%clk 0:03:02]} 8. Qc2 {[%clk 0:02:55]}  Nc6 {[%clk 0:03:02]} 9. Be2 {[%clk 0:02:53]}  Qc7 {[%clk 0:03:02]} 10. O-O {[%clk 0:02:53]}  h6 {[%clk 0:03:03]} 11. Bh4 {[%clk 0:02:48]}  Nh5 {[%clk 0:03:03]} 12. a4 {[%clk 0:02:45]}  b6 {[%clk 0:03:02]} 13. Rfe1 {[%clk 0:02:42]}  Bb7 {[%clk 0:03:02]} 14. Bg3 {[%clk 0:02:41]}  Nxg3 {[%clk 0:03:00]} 15. hxg3 {[%clk 0:02:42]}  Rad8 {[%clk 0:03:00]} 16. Nc4 {[%clk 0:02:39]}  Bc8 {[%clk 0:02:49]} 17. Ne3 {[%clk 0:02:35]}  e6 {[%clk 0:02:48]} 18. Rad1 {[%clk 0:02:30]}  Bb7 {[%clk 0:02:46]} 19. Rxd8 {[%clk 0:02:23]}  Rxd8 {[%clk 0:02:47]} 20. Rd1 {[%clk 0:02:23]}  Nb8 {[%clk 0:02:47]} 21. Rxd8+ {[%clk 0:02:02]}  Qxd8 {[%clk 0:02:48]} 22. Nd2 {[%clk 0:02:02]}  Nd7 {[%clk 0:02:45]} 23. f4 {[%clk 0:01:52]}  h5 {[%clk 0:02:38]} 24. Qd3 {[%clk 0:01:32]}  Qc7 {[%clk 0:02:33]} 25. e5 {[%clk 0:01:27]}  Bh6 {[%clk 0:02:30]} 26. Bf3 {[%clk 0:01:16]}  Bc6 {[%clk 0:02:12]} 27. Bxc6 {[%clk 0:01:06]}  Qxc6 {[%clk 0:02:13]} 28. Qe4 {[%clk 0:01:07]}  Qxe4 {[%clk 0:02:07]} 29. Nxe4 {[%clk 0:01:07]}  Nxe5 {[%clk 0:02:08]} 30. Nd6 {[%clk 0:00:46]}  Nd3 {[%clk 0:02:07]} 31. Nec4 {[%clk 0:00:41]}  h4 {[%clk 0:02:04]} 32. Nc8 {[%clk 0:00:26]}  hxg3 {[%clk 0:01:51]} 33. Nxa7 {[%clk 0:00:26]}  Bxf4 {[%clk 0:01:51]} 34. Nxb6 {[%clk 0:00:26]}  Nxb2 {[%clk 0:01:52]} 35. a5 {[%clk 0:00:19]}  c4 {[%clk 0:01:52]} 36. Nac8 {[%clk 0:00:16]}  Kg7 {[%clk 0:00:21]} 37. a6 {[%clk 0:00:16]}  Bb8 {[%clk 0:00:22]} 38. Nd7 {[%clk 0:00:16]}  Bf4 {[%clk 0:00:22]} 39. Ncb6 {[%clk 0:00:14]}  Bg5 {[%clk 0:00:08]} 40. a7 {[%clk 0:00:13]} 1-0


[Site "https://www.chess.com"]

[Event "Titled Tuesday Blitz January 17 Late 2023"]
[White "Moroni, Luca Jr"]
[Black "Al-Tarboush, Ward"]
[WhiteFideId "865834"]
[BlackFideId "7601450"]
[WhiteElo "2535"]
[BlackElo "2256"]
[Result "0-1"]
[Round "06"]
[TimeControl "180+2"]
[Date "2023.01.17"]
[WhiteClock "0:00:03"]
[BlackClock "0:01:52"]

1. d4 {[%clk 0:03:00]}  Nf6 {[%clk 0:02:59]} 2. c4 {[%clk 0:02:59]}  g6 {[%clk 0:03:00]} 3. Nc3 {[%clk 0:02:58]}  d5 {[%clk 0:03:00]} 4. cxd5 {[%clk 0:02:58]}  Nxd5 {[%clk 0:03:01]} 5. e4 {[%clk 0:02:58]}  Nxc3 {[%clk 0:03:01]} 6. bxc3 {[%clk 0:02:59]}  Bg7 {[%clk 0:03:02]} 7. Bb5+ {[%clk 0:02:58]}  c6 {[%clk 0:03:02]} 8. Ba4 {[%clk 0:02:58]}  O-O {[%clk 0:03:02]} 9. Ne2 {[%clk 0:02:57]}  b5 {[%clk 0:03:02]} 10. Bb3 {[%clk 0:02:56]}  a5 {[%clk 0:03:03]} 11. a4 {[%clk 0:02:55]}  b4 {[%clk 0:03:03]} 12. cxb4 {[%clk 0:02:55]}  axb4 {[%clk 0:03:03]} 13. O-O {[%clk 0:02:54]}  c5 {[%clk 0:03:04]} 14. Bb2 {[%clk 0:02:43]}  Nc6 {[%clk 0:03:02]} 15. Bd5 {[%clk 0:02:42]}  Ra6 {[%clk 0:03:00]} 16. Rc1 {[%clk 0:01:46]}  Nxd4 {[%clk 0:02:56]} 17. Nxd4 {[%clk 0:01:43]}  cxd4 {[%clk 0:02:57]} 18. Qb3 {[%clk 0:01:23]}  e6 {[%clk 0:02:55]} 19. Bc4 {[%clk 0:01:21]}  Rb6 {[%clk 0:02:53]} 20. a5 {[%clk 0:01:19]}  Rb8 {[%clk 0:02:53]} 21. a6 {[%clk 0:01:19]}  Qb6 {[%clk 0:02:54]} 22. Ra1 {[%clk 0:01:17]}  Ra8 {[%clk 0:02:54]} 23. Ra4 {[%clk 0:01:09]}  Bxa6 {[%clk 0:02:52]} 24. Rxb4 {[%clk 0:01:04]}  Qc5 {[%clk 0:02:49]} 25. Rc1 {[%clk 0:00:58]}  Bxc4 {[%clk 0:02:47]} 26. Rbxc4 {[%clk 0:00:52]}  Qd6 {[%clk 0:02:44]} 27. Qd3 {[%clk 0:00:45]}  e5 {[%clk 0:02:44]} 28. h3 {[%clk 0:00:41]}  h5 {[%clk 0:02:43]} 29. Rc6 {[%clk 0:00:39]}  Qd7 {[%clk 0:02:43]} 30. Qc4 {[%clk 0:00:36]}  Qb7 {[%clk 0:02:39]} 31. Ba1 {[%clk 0:00:34]}  Qa7 {[%clk 0:02:23]} 32. Rxg6 {[%clk 0:00:21]}  Qa2 {[%clk 0:02:09]} 33. Rc6 {[%clk 0:00:20]}  Qxc4 {[%clk 0:02:08]} 34. R6xc4 {[%clk 0:00:21]}  Rfd8 {[%clk 0:02:08]} 35. Rd1 {[%clk 0:00:20]}  Ra2 {[%clk 0:02:07]} 36. Rb4 {[%clk 0:00:17]}  Rc8 {[%clk 0:02:06]} 37. Rb2 {[%clk 0:00:13]}  Ra3 {[%clk 0:02:03]} 38. Rbd2 {[%clk 0:00:11]}  Bh6 {[%clk 0:02:02]} 39. Re2 {[%clk 0:00:07]}  d3 {[%clk 0:02:02]} 40. Ree1 {[%clk 0:00:08]}  d2 {[%clk 0:02:02]} 41. Rf1 {[%clk 0:00:08]}  Rc1 {[%clk 0:02:02]} 42. Bxe5 {[%clk 0:00:06]}  Rb3 {[%clk 0:01:55]} 43. f4 {[%clk 0:00:02]}  Rbb1 {[%clk 0:01:55]} 44. Rxd2 {[%clk 0:00:02]}  Rxf1+ {[%clk 0:01:55]} 45. Kh2 {[%clk 0:00:03]}  Bxf4+ {[%clk 0:01:54]} 46. Bxf4 {[%clk 0:00:03]}  Rxf4 {[%clk 0:01:55]} 47. Kg3 {[%clk 0:00:03]}  Rbf1 {[%clk 0:01:52]} 0-1


[Site "https://www.chess.com"]